[Event "Titled Tuesday Blitz November 07 Late 2023"]
[White "Kazakov, Mikhail"]
[Black "Kozak, Antoni"]
[WhiteFideId "14102749"]
[BlackFideId "21832030"]
[WhiteElo "2465"]
[BlackElo "2811"]
[Result "0-1"]
[Round "7"]
[TimeControl "180+1"]
[Date "2023.11.07"]
[WhiteClock "0:00:00"]
[BlackClock "0:00:10"]
[Board "20"]

1. e4 {[%clk 0:03:00]}  c5 {[%clk 0:02:56]} 2. Nf3 {[%clk 0:02:59]}  Nc6 {[%clk 0:02:57]} 3. d4 {[%clk 0:02:57]}  cxd4 {[%clk 0:02:57]} 4. Nxd4 {[%clk 0:02:58]}  e5 {[%clk 0:02:58]} 5. Nb5 {[%clk 0:02:56]}  d6 {[%clk 0:02:57]} 6. c4 {[%clk 0:02:55]}  g6 {[%clk 0:02:55]} 7. N1c3 {[%clk 0:02:53]}  a6 {[%clk 0:02:55]} 8. Na3 {[%clk 0:02:52]}  Bg7 {[%clk 0:02:55]} 9. Be2 {[%clk 0:02:42]}  Nf6 {[%clk 0:02:53]} 10. Nc2 {[%clk 0:02:40]}  Be6 {[%clk 0:02:51]} 11. O-O {[%clk 0:02:30]}  Rc8 {[%clk 0:02:51]} 12. b3 {[%clk 0:02:29]}  O-O {[%clk 0:02:45]} 13. Ba3 {[%clk 0:02:25]}  Qa5 {[%clk 0:02:24]} 14. Qe1 {[%clk 0:02:20]}  Nd4 {[%clk 0:01:53]} 15. Nxd4 {[%clk 0:01:52]}  exd4 {[%clk 0:01:53]} 16. Na4 {[%clk 0:01:44]}  Qc7 {[%clk 0:01:40]} 17. Bd3 {[%clk 0:01:31]}  Rfe8 {[%clk 0:01:30]} 18. Rc1 {[%clk 0:01:29]}  Bd7 {[%clk 0:01:05]} 19. Nb2 {[%clk 0:01:12]}  Bc6 {[%clk 0:00:58]} 20. f3 {[%clk 0:01:11]}  Bh6 {[%clk 0:00:57]} 21. Rd1 {[%clk 0:01:10]}  Nh5 {[%clk 0:00:55]} 22. g3 {[%clk 0:01:06]}  Qe7 {[%clk 0:00:51]} 23. Bb1 {[%clk 0:00:49]}  Be3+ {[%clk 0:00:49]} 24. Kh1 {[%clk 0:00:46]}  b5 {[%clk 0:00:38]} 25. Bd3 {[%clk 0:00:37]}  Qe6 {[%clk 0:00:36]} 26. Kg2 {[%clk 0:00:33]}  Bd7 {[%clk 0:00:33]} 27. Kh1 {[%clk 0:00:20]}  Red8 {[%clk 0:00:15]} 28. Qe2 {[%clk 0:00:20]}  Bc6 {[%clk 0:00:11]} 29. Qg2 {[%clk 0:00:19]}  Re8 {[%clk 0:00:12]} 30. Rde1 {[%clk 0:00:16]}  Rcd8 {[%clk 0:00:11]} 31. Nd1 {[%clk 0:00:16]}  Bh6 {[%clk 0:00:10]} 32. Bb2 {[%clk 0:00:16]}  Bg7 {[%clk 0:00:11]} 33. Qf2 {[%clk 0:00:15]}  Qh3 {[%clk 0:00:10]} 34. Qg2 {[%clk 0:00:16]}  Qc8 {[%clk 0:00:11]} 35. Nf2 {[%clk 0:00:15]}  Qb7 {[%clk 0:00:10]} 36. Re2 {[%clk 0:00:14]}  f5 {[%clk 0:00:10]} 37. Rfe1 {[%clk 0:00:14]}  Nf6 {[%clk 0:00:10]} 38. Bxd4 {[%clk 0:00:13]}  bxc4 {[%clk 0:00:10]} 39. Bxc4+ {[%clk 0:00:11]}  Kh8 {[%clk 0:00:09]} 40. Bd3 {[%clk 0:00:11]}  fxe4 {[%clk 0:00:07]} 41. fxe4 {[%clk 0:00:08]}  Nd7 {[%clk 0:00:05]} 42. Bxg7+ {[%clk 0:00:07]}  Kxg7 {[%clk 0:00:06]} 43. h4 {[%clk 0:00:06]}  Nc5 {[%clk 0:00:06]} 44. Bb1 {[%clk 0:00:06]}  Re7 {[%clk 0:00:06]} 45. Kh2 {[%clk 0:00:06]}  Rde8 {[%clk 0:00:07]} 46. Qf3 {[%clk 0:00:05]}  Rf8 {[%clk 0:00:07]} 47. Qc3+ {[%clk 0:00:04]}  Kg8 {[%clk 0:00:06]} 48. Qc4+ {[%clk 0:00:03]}  Ref7 {[%clk 0:00:06]} 49. Ng4 {[%clk 0:00:02]}  Bb5 {[%clk 0:00:05]} 50. Qd4 {[%clk 0:00:02]}  h5 {[%clk 0:00:02]} 51. Nh6+ {[%clk 0:00:02]}  Kh7 {[%clk 0:00:03]} 52. Nxf7 {[%clk 0:00:02]}  Qxf7 {[%clk 0:00:03]} 53. Rf2 {[%clk 0:00:03]}  Qxf2+ {[%clk 0:00:04]} 54. Qxf2 {[%clk 0:00:03]}  Rxf2+ {[%clk 0:00:04]} 55. Kg1 {[%clk 0:00:04]}  Rb2 {[%clk 0:00:05]} 56. Rd1 {[%clk 0:00:04]}  Ne6 {[%clk 0:00:04]} 57. Bd3 {[%clk 0:00:03]}  Bxd3 {[%clk 0:00:04]} 58. Rxd3 {[%clk 0:00:03]}  Nc5 {[%clk 0:00:05]} 59. Rxd6 {[%clk 0:00:03]}  Rb1+ {[%clk 0:00:06]} 60. Kg2 {[%clk 0:00:03]}  Nxe4 {[%clk 0:00:06]} 61. Rxa6 {[%clk 0:00:02]}  Rb2+ {[%clk 0:00:06]} 62. Kf3 {[%clk 0:00:03]}  Nc3 {[%clk 0:00:06]} 63. Kf4 {[%clk 0:00:02]}  Ne2+ {[%clk 0:00:06]} 64. Kg5 {[%clk 0:00:02]}  Nxg3 {[%clk 0:00:06]} 65. Ra7+ {[%clk 0:00:03]}  Kg8 {[%clk 0:00:07]} 66. Kxg6 {[%clk 0:00:03]}  Kf8 {[%clk 0:00:07]} 67. Kg5 {[%clk 0:00:03]}  Rf2 {[%clk 0:00:06]} 68. Ra5 {[%clk 0:00:02]}  Ke8 {[%clk 0:00:07]} 69. a4 {[%clk 0:00:02]}  Kf7 {[%clk 0:00:07]} 70. Rb5 {[%clk 0:00:02]}  Rf3 {[%clk 0:00:06]} 71. a5 {[%clk 0:00:02]}  Ne4+ {[%clk 0:00:06]} 72. Kxh5 {[%clk 0:00:01]}  Nd6 {[%clk 0:00:07]} 73. Rb6 {[%clk 0:00:01]}  Ne8 {[%clk 0:00:06]} 74. Kg4 {[%clk 0:00:02]}  Rc3 {[%clk 0:00:06]} 75. b4 {[%clk 0:00:02]}  Nf6+ {[%clk 0:00:06]} 76. Kf4 {[%clk 0:00:02]}  Nd5+ {[%clk 0:00:06]} 77. Ke5 {[%clk 0:00:03]}  Nxb6 {[%clk 0:00:06]} 78. axb6 {[%clk 0:00:04]}  Rc6 {[%clk 0:00:06]} 79. Kd5 {[%clk 0:00:03]}  Rxb6 {[%clk 0:00:07]} 80. Kc5 {[%clk 0:00:04]}  Rb8 {[%clk 0:00:07]} 81. b5 {[%clk 0:00:04]}  Ke7 {[%clk 0:00:08]} 82. Kc6 {[%clk 0:00:04]}  Kd8 {[%clk 0:00:07]} 83. b6 {[%clk 0:00:04]}  Kc8 {[%clk 0:00:07]} 84. h5 {[%clk 0:00:04]}  Rb7 {[%clk 0:00:08]} 85. Kd6 {[%clk 0:00:02]}  Rh7 {[%clk 0:00:09]} 86. Ke6 {[%clk 0:00:02]}  Kb7 {[%clk 0:00:09]} 87. Kf6 {[%clk 0:00:00]}  Rxh5 {[%clk 0:00:10]} 0-1


[Site "https://www.chess.com"]

[Event "Titled Tuesday Blitz November 07 Late 2023"]
[White "Grigoriants, Sergey"]
[Black "Volkov, Maksim"]
[WhiteFideId "4130804"]
[BlackFideId "54123070"]
[WhiteElo "2904"]
[BlackElo "2643"]
[Result "1-0"]
[Round "7"]
[TimeControl "180+1"]
[Date "2023.11.07"]
[WhiteClock "0:00:08"]
[BlackClock "0:00:06"]
[Board "24"]

1. d4 {[%clk 0:02:53]}  d5 {[%clk 0:02:58]} 2. c4 {[%clk 0:02:53]}  e6 {[%clk 0:02:59]} 3. Nc3 {[%clk 0:02:53]}  c6 {[%clk 0:02:59]} 4. e3 {[%clk 0:02:53]}  Nf6 {[%clk 0:02:58]} 5. Nf3 {[%clk 0:02:53]}  Nbd7 {[%clk 0:02:58]} 6. Qc2 {[%clk 0:02:51]}  Bd6 {[%clk 0:02:58]} 7. Bd3 {[%clk 0:02:49]}  dxc4 {[%clk 0:02:58]} 8. Bxc4 {[%clk 0:02:50]}  b5 {[%clk 0:02:58]} 9. Be2 {[%clk 0:02:50]}  Bb7 {[%clk 0:02:58]} 10. O-O {[%clk 0:02:51]}  O-O {[%clk 0:02:59]} 11. Rd1 {[%clk 0:02:51]}  Qc7 {[%clk 0:02:54]} 12. e4 {[%clk 0:02:51]}  e5 {[%clk 0:02:54]} 13. g3 {[%clk 0:02:52]}  Rfe8 {[%clk 0:02:48]} 14. dxe5 {[%clk 0:02:50]}  Nxe5 {[%clk 0:02:48]} 15. Nd4 {[%clk 0:02:51]}  g6 {[%clk 0:02:08]} 16. Bg5 {[%clk 0:02:42]}  Nfd7 {[%clk 0:02:07]} 17. Rac1 {[%clk 0:01:52]}  Bc5 {[%clk 0:01:58]} 18. Be3 {[%clk 0:01:46]}  Qb6 {[%clk 0:01:36]} 19. b4 {[%clk 0:01:40]}  Bxb4 {[%clk 0:01:11]} 20. Ndxb5 {[%clk 0:01:39]}  Qa5 {[%clk 0:01:09]} 21. Nd6 {[%clk 0:01:32]}  Bxd6 {[%clk 0:01:03]} 22. Rxd6 {[%clk 0:01:33]}  Ba6 {[%clk 0:01:00]} 23. f4 {[%clk 0:00:57]}  Bxe2 {[%clk 0:00:59]} 24. Qxe2 {[%clk 0:00:57]}  Qa3 {[%clk 0:00:36]} 25. fxe5 {[%clk 0:00:52]}  Nxe5 {[%clk 0:00:36]} 26. Rdd1 {[%clk 0:00:44]}  Rad8 {[%clk 0:00:36]} 27. Kg2 {[%clk 0:00:33]}  Rb8 {[%clk 0:00:36]} 28. Rc2 {[%clk 0:00:29]}  h5 {[%clk 0:00:32]} 29. Bf4 {[%clk 0:00:27]}  Rb4 {[%clk 0:00:26]} 30. Bxe5 {[%clk 0:00:26]}  Rxe5 {[%clk 0:00:27]} 31. Rd8+ {[%clk 0:00:23]}  Kg7 {[%clk 0:00:27]} 32. Qf3 {[%clk 0:00:20]}  Rb7 {[%clk 0:00:22]} 33. Rf2 {[%clk 0:00:18]}  Qe7 {[%clk 0:00:21]} 34. Rd1 {[%clk 0:00:15]}  Rb8 {[%clk 0:00:18]} 35. Rdf1 {[%clk 0:00:15]}  Rf8 {[%clk 0:00:15]} 36. Qf6+ {[%clk 0:00:13]}  Qxf6 {[%clk 0:00:16]} 37. Rxf6 {[%clk 0:00:14]}  Rc5 {[%clk 0:00:17]} 38. R6f3 {[%clk 0:00:13]}  h4 {[%clk 0:00:16]} 39. gxh4 {[%clk 0:00:13]}  f6 {[%clk 0:00:17]} 40. Rd1 {[%clk 0:00:12]}  Re8 {[%clk 0:00:16]} 41. Rd7+ {[%clk 0:00:11]}  Kh6 {[%clk 0:00:17]} 42. Rxa7 {[%clk 0:00:11]}  Rb8 {[%clk 0:00:14]} 43. Rf7 {[%clk 0:00:09]}  Kh5 {[%clk 0:00:11]} 44. Kg3 {[%clk 0:00:07]}  g5 {[%clk 0:00:10]} 45. R7xf6 {[%clk 0:00:07]}  gxh4+ {[%clk 0:00:10]} 46. Kh3 {[%clk 0:00:07]}  Rb2 {[%clk 0:00:05]} 47. R3f5+ {[%clk 0:00:07]}  Rxf5 {[%clk 0:00:06]} 48. Rxf5+ {[%clk 0:00:08]}  Kg6 {[%clk 0:00:06]} 49. Rc5 {[%clk 0:00:09]}  Rc2 {[%clk 0:00:05]} 50. Kxh4 {[%clk 0:00:09]}  Rxh2+ {[%clk 0:00:05]} 51. Kg4 {[%clk 0:00:09]}  Rc2 {[%clk 0:00:06]} 52. Rxc6+ {[%clk 0:00:09]}  Kf7 {[%clk 0:00:07]} 53. Kf5 {[%clk 0:00:09]}  Rxc3 {[%clk 0:00:06]} 54. Rxc3 {[%clk 0:00:08]} 1-0


[Site "https://www.chess.com"]

[Event "Titled Tuesday Blitz November 07 Late 2023"]
[White "Golubev, Mikhail"]
[Black "Vasquez Schroeder, Rodrigo"]
[WhiteFideId "14100983"]
[BlackFideId "3400042"]
[WhiteElo "2639"]
[BlackElo "2838"]
[Result "1-0"]
[Round "7"]
[TimeControl "180+1"]
[Date "2023.11.07"]
[WhiteClock "0:00:19"]
[BlackClock "0:00:29"]
[Board "27"]

1. e4 {[%clk 0:03:00]}  c5 {[%clk 0:02:59]} 2. Nf3 {[%clk 0:03:01]}  d6 {[%clk 0:03:00]} 3. d4 {[%clk 0:03:01]}  cxd4 {[%clk 0:03:01]} 4. Nxd4 {[%clk 0:03:01]}  Nf6 {[%clk 0:03:01]} 5. Nc3 {[%clk 0:03:01]}  a6 {[%clk 0:03:02]} 6. Bc4 {[%clk 0:03:02]}  e6 {[%clk 0:03:00]} 7. O-O {[%clk 0:03:02]}  b5 {[%clk 0:03:00]} 8. Bb3 {[%clk 0:03:01]}  Be7 {[%clk 0:03:01]} 9. f4 {[%clk 0:03:00]}  O-O {[%clk 0:02:59]} 10. e5 {[%clk 0:03:00]}  dxe5 {[%clk 0:02:58]} 11. fxe5 {[%clk 0:03:01]}  Bc5 {[%clk 0:02:57]} 12. Be3 {[%clk 0:02:40]}  Nfd7 {[%clk 0:02:56]} 13. Ne4 {[%clk 0:02:37]}  Bb7 {[%clk 0:02:38]} 14. Nxc5 {[%clk 0:02:02]}  Nxc5 {[%clk 0:02:37]} 15. Qg4 {[%clk 0:02:00]}  Nxb3 {[%clk 0:02:32]} 16. axb3 {[%clk 0:01:51]}  Kh8 {[%clk 0:02:16]} 17. Rad1 {[%clk 0:01:39]}  Nd7 {[%clk 0:01:53]} 18. Nxe6 {[%clk 0:01:25]}  fxe6 {[%clk 0:01:53]} 19. Rxf8+ {[%clk 0:01:24]}  Qxf8 {[%clk 0:01:52]} 20. Rxd7 {[%clk 0:01:24]}  Bc6 {[%clk 0:01:35]} 21. Rd6 {[%clk 0:01:21]}  Bb7 {[%clk 0:01:26]} 22. h3 {[%clk 0:01:00]}  Rc8 {[%clk 0:01:21]} 23. c4 {[%clk 0:00:54]}  bxc4 {[%clk 0:01:14]} 24. bxc4 {[%clk 0:00:54]}  Re8 {[%clk 0:00:58]} 25. Rxe6 {[%clk 0:00:44]}  Rxe6 {[%clk 0:00:54]} 26. Qxe6 {[%clk 0:00:45]}  Bc8 {[%clk 0:00:54]} 27. Qd5 {[%clk 0:00:39]}  Qe8 {[%clk 0:00:53]} 28. c5 {[%clk 0:00:30]}  Bd7 {[%clk 0:00:48]} 29. Qd6 {[%clk 0:00:26]}  Bc6 {[%clk 0:00:47]} 30. e6 {[%clk 0:00:25]}  h6 {[%clk 0:00:44]} 31. Bd4 {[%clk 0:00:21]}  Kh7 {[%clk 0:00:29]} 32. Qc7 {[%clk 0:00:19]} 1-0


[Site "https://www.chess.com"]

[Event "Titled Tuesday Blitz November 07 Late 2023"]
[White "Rosen, Eric"]
[Black "Sturt, Raven"]
[WhiteFideId "2032562"]
[BlackFideId "2007304"]
[WhiteElo "2736"]
[BlackElo "2601"]
[Result "0-1"]
[Round "7"]
[TimeControl "180+1"]
[Date "2023.11.07"]
[WhiteClock "0:00:00"]
[BlackClock "0:00:02"]
[Board "33"]

1. e4 {[%clk 0:03:00]}  e5 {[%clk 0:02:59]} 2. Nf3 {[%clk 0:03:00]}  Nc6 {[%clk 0:03:00]} 3. Nc3 {[%clk 0:03:00]}  Nf6 {[%clk 0:02:59]} 4. d4 {[%clk 0:02:59]}  exd4 {[%clk 0:02:59]} 5. Nxd4 {[%clk 0:03:00]}  Bb4 {[%clk 0:02:59]} 6. Nxc6 {[%clk 0:03:00]}  bxc6 {[%clk 0:02:59]} 7. Bd3 {[%clk 0:03:01]}  O-O {[%clk 0:02:59]} 8. O-O {[%clk 0:03:01]}  d5 {[%clk 0:02:59]} 9. Bd2 {[%clk 0:03:02]}  Bxc3 {[%clk 0:02:44]} 10. Bxc3 {[%clk 0:03:02]}  dxe4 {[%clk 0:02:44]} 11. Bxf6 {[%clk 0:03:01]}  Qxf6 {[%clk 0:02:44]} 12. Bxe4 {[%clk 0:03:02]}  Ba6 {[%clk 0:02:25]} 13. Re1 {[%clk 0:02:51]}  Rad8 {[%clk 0:02:24]} 14. Qh5 {[%clk 0:02:45]}  h6 {[%clk 0:02:18]} 15. Qa5 {[%clk 0:02:45]}  Bc4 {[%clk 0:02:12]} 16. b3 {[%clk 0:02:35]}  Bd5 {[%clk 0:02:09]} 17. Bxd5 {[%clk 0:02:11]}  Rxd5 {[%clk 0:02:08]} 18. Qxa7 {[%clk 0:02:12]}  Rd2 {[%clk 0:02:04]} 19. Rac1 {[%clk 0:01:59]}  Rfd8 {[%clk 0:02:00]} 20. Rf1 {[%clk 0:01:53]}  Re2 {[%clk 0:01:56]} 21. Qxc7 {[%clk 0:01:37]}  Rdd2 {[%clk 0:01:56]} 22. Qb8+ {[%clk 0:01:28]}  Kh7 {[%clk 0:01:54]} 23. Qg3 {[%clk 0:01:29]}  h5 {[%clk 0:01:47]} 24. h4 {[%clk 0:01:19]}  c5 {[%clk 0:01:14]} 25. a4 {[%clk 0:01:16]}  c4 {[%clk 0:01:15]} 26. bxc4 {[%clk 0:00:55]}  Re4 {[%clk 0:01:12]} 27. Qg5 {[%clk 0:00:23]}  Qxg5 {[%clk 0:00:51]} 28. hxg5 {[%clk 0:00:24]}  Rxc4 {[%clk 0:00:51]} 29. a5 {[%clk 0:00:24]}  Rd6 {[%clk 0:00:51]} 30. Ra1 {[%clk 0:00:23]}  Ra6 {[%clk 0:00:51]} 31. Rfc1 {[%clk 0:00:21]}  Kg6 {[%clk 0:00:50]} 32. Kf1 {[%clk 0:00:08]}  Kxg5 {[%clk 0:00:50]} 33. Ke2 {[%clk 0:00:09]}  h4 {[%clk 0:00:28]} 34. Kd3 {[%clk 0:00:09]}  Rg4 {[%clk 0:00:27]} 35. Rcb1 {[%clk 0:00:05]}  Rxg2 {[%clk 0:00:26]} 36. Rb5+ {[%clk 0:00:06]}  f5 {[%clk 0:00:25]} 37. Rb6 {[%clk 0:00:05]}  Ra8 {[%clk 0:00:23]} 38. a6 {[%clk 0:00:05]}  h3 {[%clk 0:00:23]} 39. a7 {[%clk 0:00:05]}  h2 {[%clk 0:00:23]} 40. Rbb1 {[%clk 0:00:02]}  g6 {[%clk 0:00:18]} 41. c4 {[%clk 0:00:02]}  Rxf2 {[%clk 0:00:15]} 42. c5 {[%clk 0:00:03]}  Rf3+ {[%clk 0:00:15]} 43. Kc4 {[%clk 0:00:03]}  Rh3 {[%clk 0:00:13]} 44. Rh1 {[%clk 0:00:02]}  Kf6 {[%clk 0:00:11]} 45. c6 {[%clk 0:00:02]}  Ke6 {[%clk 0:00:11]} 46. Kc5 {[%clk 0:00:03]}  Rc3+ {[%clk 0:00:10]} 47. Kb6 {[%clk 0:00:03]}  Kd6 {[%clk 0:00:10]} 48. Rad1+ {[%clk 0:00:01]}  Ke6 {[%clk 0:00:09]} 49. Rhe1+ {[%clk 0:00:01]}  Kf6 {[%clk 0:00:10]} 50. Kb7 {[%clk 0:00:01]}  Rxa7+ {[%clk 0:00:10]} 51. Kxa7 {[%clk 0:00:02]}  Rxc6 {[%clk 0:00:11]} 52. Rd2 {[%clk 0:00:02]}  Re6 {[%clk 0:00:08]} 53. Rh1 {[%clk 0:00:01]}  f4 {[%clk 0:00:08]} 54. Rdxh2 {[%clk 0:00:02]}  Kf5 {[%clk 0:00:08]} 55. Kb7 {[%clk 0:00:02]}  g5 {[%clk 0:00:08]} 56. Rh8 {[%clk 0:00:02]}  f3 {[%clk 0:00:08]} 57. Rf8+ {[%clk 0:00:02]}  Rf6 {[%clk 0:00:04]} 58. Rg8 {[%clk 0:00:00]}  Kf4 {[%clk 0:00:02]} 0-1


[Site "https://www.chess.com"]

[Event "Titled Tuesday Blitz November 07 Late 2023"]
[White "Gontcharov, Vladislav"]
[Black "Tatarinov, Dmitry"]
[WhiteFideId "4123492"]
[BlackFideId "24160067"]
[WhiteElo "2588"]
[BlackElo "2728"]
[Result "1/2-1/2"]
[Round "7"]
[TimeControl "180+1"]
[Date "2023.11.07"]
[WhiteClock "0:00:04"]
[BlackClock "0:00:16"]
[Board "34"]

1. d4 {[%clk 0:03:00]}  Nf6 {[%clk 0:02:14]} 2. c4 {[%clk 0:02:59]}  e6 {[%clk 0:02:14]} 3. Nc3 {[%clk 0:02:58]}  d5 {[%clk 0:02:14]} 4. cxd5 {[%clk 0:02:56]}  exd5 {[%clk 0:02:13]} 5. Bg5 {[%clk 0:02:57]}  c6 {[%clk 0:02:13]} 6. e3 {[%clk 0:02:57]}  h6 {[%clk 0:02:13]} 7. Bh4 {[%clk 0:02:56]}  Bd6 {[%clk 0:02:13]} 8. Bd3 {[%clk 0:02:55]}  Nbd7 {[%clk 0:02:12]} 9. Nge2 {[%clk 0:02:54]}  O-O {[%clk 0:02:12]} 10. Qc2 {[%clk 0:02:52]}  Re8 {[%clk 0:02:12]} 11. h3 {[%clk 0:02:49]}  b5 {[%clk 0:02:12]} 12. g4 {[%clk 0:02:41]}  b4 {[%clk 0:02:07]} 13. Nd1 {[%clk 0:02:35]}  c5 {[%clk 0:02:06]} 14. Rg1 {[%clk 0:02:20]}  c4 {[%clk 0:02:02]} 15. Bf5 {[%clk 0:02:17]}  Qa5 {[%clk 0:02:02]} 16. Kf1 {[%clk 0:02:08]}  Ne4 {[%clk 0:01:57]} 17. f3 {[%clk 0:01:46]}  b3 {[%clk 0:01:54]} 18. axb3 {[%clk 0:01:37]}  Qxa1 {[%clk 0:01:47]} 19. fxe4 {[%clk 0:01:37]}  cxb3 {[%clk 0:01:46]} 20. Qd2 {[%clk 0:01:29]}  dxe4 {[%clk 0:01:40]} 21. Kf2 {[%clk 0:01:15]}  Qa6 {[%clk 0:01:28]} 22. Ndc3 {[%clk 0:01:11]}  Nb6 {[%clk 0:01:17]} 23. Bxe4 {[%clk 0:01:08]}  Bb7 {[%clk 0:01:15]} 24. Bd3 {[%clk 0:01:07]}  Nc4 {[%clk 0:01:12]} 25. Qc1 {[%clk 0:01:05]}  Rac8 {[%clk 0:01:10]} 26. g5 {[%clk 0:01:02]}  Bf8 {[%clk 0:01:04]} 27. Nf4 {[%clk 0:00:51]}  hxg5 {[%clk 0:01:01]} 28. Rxg5 {[%clk 0:00:50]}  Qh6 {[%clk 0:01:01]} 29. Rh5 {[%clk 0:00:46]}  Qxh5 {[%clk 0:00:37]} 30. Nxh5 {[%clk 0:00:45]}  Nxe3 {[%clk 0:00:38]} 31. Qg1 {[%clk 0:00:27]}  Rc6 {[%clk 0:00:36]} 32. Bf6 {[%clk 0:00:24]}  Ree6 {[%clk 0:00:12]} 33. Bxg7 {[%clk 0:00:23]}  Rg6 {[%clk 0:00:12]} 34. Bxg6 {[%clk 0:00:20]}  Rxg6 {[%clk 0:00:13]} 35. Qxg6 {[%clk 0:00:20]}  fxg6 {[%clk 0:00:12]} 36. Bxf8 {[%clk 0:00:20]}  Nc4 {[%clk 0:00:11]} 37. Bc5 {[%clk 0:00:17]}  gxh5 {[%clk 0:00:11]} 38. Bxa7 {[%clk 0:00:17]}  Nxb2 {[%clk 0:00:10]} 39. d5 {[%clk 0:00:18]}  Nc4 {[%clk 0:00:10]} 40. Kf3 {[%clk 0:00:14]}  b2 {[%clk 0:00:11]} 41. Ke4 {[%clk 0:00:14]}  Nd2+ {[%clk 0:00:10]} 42. Ke5 {[%clk 0:00:14]}  b1=Q {[%clk 0:00:10]} 43. Nxb1 {[%clk 0:00:14]}  Nxb1 {[%clk 0:00:11]} 44. d6 {[%clk 0:00:14]}  Bc8 {[%clk 0:00:10]} 45. Kf6 {[%clk 0:00:14]}  Bxh3 {[%clk 0:00:09]} 46. Ke7 {[%clk 0:00:13]}  Kg7 {[%clk 0:00:06]} 47. Bf2 {[%clk 0:00:13]}  Kg6 {[%clk 0:00:06]} 48. d7 {[%clk 0:00:13]}  Bxd7 {[%clk 0:00:06]} 49. Kxd7 {[%clk 0:00:13]}  Nd2 {[%clk 0:00:07]} 50. Ke6 {[%clk 0:00:13]}  Kg5 {[%clk 0:00:07]} 51. Ke5 {[%clk 0:00:13]}  Kg4 {[%clk 0:00:08]} 52. Kd4 {[%clk 0:00:12]}  Kf3 {[%clk 0:00:04]} 53. Bh4 {[%clk 0:00:12]}  Ne4 {[%clk 0:00:05]} 54. Bd8 {[%clk 0:00:11]}  Nd6 {[%clk 0:00:05]} 55. Kd3 {[%clk 0:00:10]}  Nf7 {[%clk 0:00:04]} 56. Be7 {[%clk 0:00:10]}  Ne5+ {[%clk 0:00:05]} 57. Kd2 {[%clk 0:00:10]}  Nc6 {[%clk 0:00:04]} 58. Bf6 {[%clk 0:00:09]}  Nb4 {[%clk 0:00:04]} 59. Ke1 {[%clk 0:00:09]}  Kg2 {[%clk 0:00:03]} 60. Be7 {[%clk 0:00:07]}  Nd5 {[%clk 0:00:04]} 61. Bd8 {[%clk 0:00:07]}  Ne3 {[%clk 0:00:03]} 62. Ke2 {[%clk 0:00:07]}  Nf5 {[%clk 0:00:04]} 63. Ke1 {[%clk 0:00:07]}  Ng3 {[%clk 0:00:04]} 64. Be7 {[%clk 0:00:06]}  Kf3 {[%clk 0:00:05]} 65. Bd8 {[%clk 0:00:06]}  Ne4 {[%clk 0:00:05]} 66. Kf1 {[%clk 0:00:05]}  Kg3 {[%clk 0:00:04]} 67. Kg1 {[%clk 0:00:04]}  Kh3 {[%clk 0:00:04]} 68. Be7 {[%clk 0:00:03]}  Ng3 {[%clk 0:00:04]} 69. Bd8 {[%clk 0:00:03]}  Ne2+ {[%clk 0:00:05]} 70. Kh1 {[%clk 0:00:03]}  Nf4 {[%clk 0:00:05]} 71. Kg1 {[%clk 0:00:03]}  Ne6 {[%clk 0:00:05]} 72. Be7 {[%clk 0:00:03]}  Ng7 {[%clk 0:00:06]} 73. Kh1 {[%clk 0:00:03]}  Nf5 {[%clk 0:00:07]} 74. Bd8 {[%clk 0:00:03]}  Kg4 {[%clk 0:00:07]} 75. Kg1 {[%clk 0:00:03]}  Nd4 {[%clk 0:00:07]} 76. Kh2 {[%clk 0:00:04]}  Ne6 {[%clk 0:00:08]} 77. Be7 {[%clk 0:00:03]}  Kf5 {[%clk 0:00:09]} 78. Kh3 {[%clk 0:00:03]}  Nf4+ {[%clk 0:00:09]} 79. Kh4 {[%clk 0:00:03]}  Kg6 {[%clk 0:00:10]} 80. Bd8 {[%clk 0:00:03]}  Ne6 {[%clk 0:00:10]} 81. Be7 {[%clk 0:00:03]}  Ng7 {[%clk 0:00:10]} 82. Kh3 {[%clk 0:00:03]}  Nf5 {[%clk 0:00:10]} 83. Bd8 {[%clk 0:00:03]}  Nd6 {[%clk 0:00:10]} 84. Kh2 {[%clk 0:00:03]}  Nf7 {[%clk 0:00:11]} 85. Be7 {[%clk 0:00:03]}  Nh6 {[%clk 0:00:11]} 86. Bd8 {[%clk 0:00:03]}  Ng4+ {[%clk 0:00:11]} 87. Kh3 {[%clk 0:00:03]}  Ne3 {[%clk 0:00:12]} 88. Kh2 {[%clk 0:00:04]}  Nd5 {[%clk 0:00:12]} 89. Kh3 {[%clk 0:00:03]}  Ne3 {[%clk 0:00:12]} 90. Kh2 {[%clk 0:00:04]}  Nf5 {[%clk 0:00:13]} 91. Kh3 {[%clk 0:00:04]}  Kf7 {[%clk 0:00:14]} 92. Kh2 {[%clk 0:00:04]}  Ke8 {[%clk 0:00:14]} 93. Ba5 {[%clk 0:00:03]}  Kd7 {[%clk 0:00:15]} 94. Kh3 {[%clk 0:00:04]}  Ke6 {[%clk 0:00:15]} 95. Be1 {[%clk 0:00:04]}  Kf6 {[%clk 0:00:15]} 96. Bf2 {[%clk 0:00:04]}  Nd6 {[%clk 0:00:15]} 97. Bh4+ {[%clk 0:00:04]}  Kf5 {[%clk 0:00:16]} 98. Be1 {[%clk 0:00:04]}  Nc4 {[%clk 0:00:16]} 99. Kh4 {[%clk 0:00:04]} 1/2-1/2


[Site "https://www.chess.com"]

[Event "Titled Tuesday Blitz November 07 Late 2023"]
[White "Koziorowicz, Michal"]
[Black "MKlose11"]
[WhiteFideId "21809194"]
[WhiteElo "2581"]
[BlackElo "2721"]
[Result "1-0"]
[Round "7"]
[TimeControl "180+1"]
[Date "2023.11.07"]
[WhiteClock "0:01:29"]
[BlackClock "0:00:34"]
[Board "35"]

1. e4 {[%clk 0:03:00]}  e6 {[%clk 0:02:56]} 2. d4 {[%clk 0:02:59]}  d5 {[%clk 0:02:56]} 3. Nc3 {[%clk 0:02:58]}  Bb4 {[%clk 0:02:56]} 4. e5 {[%clk 0:02:58]}  Ne7 {[%clk 0:02:56]} 5. Qg4 {[%clk 0:02:47]}  Ng6 {[%clk 0:02:46]} 6. h4 {[%clk 0:02:42]}  h5 {[%clk 0:02:45]} 7. Qg3 {[%clk 0:02:36]}  Nc6 {[%clk 0:02:44]} 8. a3 {[%clk 0:02:36]}  Bxc3+ {[%clk 0:02:42]} 9. bxc3 {[%clk 0:02:35]}  Nce7 {[%clk 0:02:42]} 10. Bd3 {[%clk 0:02:34]}  b6 {[%clk 0:02:31]} 11. Nf3 {[%clk 0:02:32]}  a5 {[%clk 0:02:28]} 12. Bg5 {[%clk 0:02:32]}  Qd7 {[%clk 0:02:06]} 13. Bxe7 {[%clk 0:02:31]}  Nxe7 {[%clk 0:01:56]} 14. Qxg7 {[%clk 0:02:30]}  Rg8 {[%clk 0:01:56]} 15. Qh7 {[%clk 0:02:30]}  Rxg2 {[%clk 0:01:49]} 16. Ng5 {[%clk 0:02:27]}  Qc6 {[%clk 0:01:34]} 17. Qxf7+ {[%clk 0:02:21]}  Kd7 {[%clk 0:01:34]} 18. Kf1 {[%clk 0:02:18]}  Rg4 {[%clk 0:01:29]} 19. f3 {[%clk 0:02:17]}  Qxc3 {[%clk 0:01:23]} 20. fxg4 {[%clk 0:02:08]}  Qxa1+ {[%clk 0:01:22]} 21. Kg2 {[%clk 0:02:08]}  Qxd4 {[%clk 0:01:22]} 22. Qxe6+ {[%clk 0:01:30]}  Kd8 {[%clk 0:01:18]} 23. Nf7+ {[%clk 0:01:30]}  Ke8 {[%clk 0:01:18]} 24. Bb5+ {[%clk 0:01:30]}  Kf8 {[%clk 0:01:09]} 25. Qh6+ {[%clk 0:01:30]}  Kxf7 {[%clk 0:01:09]} 26. Rf1+ {[%clk 0:01:29]}  Bf5 {[%clk 0:00:53]} 27. Qh7+ {[%clk 0:01:29]}  Kf8 {[%clk 0:00:39]} 28. Qh8+ {[%clk 0:01:29]}  Kf7 {[%clk 0:00:39]} 29. e6+ {[%clk 0:01:29]}  Kxe6 {[%clk 0:00:35]} 30. Qxd4 {[%clk 0:01:30]}  Bxg4 {[%clk 0:00:34]} 31. Rf6# {[%clk 0:01:29]} 1-0


[Site "https://www.chess.com"]